bitfinex-derivatives/quotes_SOLF0:USTF0_20250111
["timestamp","ask_amount","ask_price","bid_price","bid_amount"]
[1736588924346,23.490821,185.4,185.28,2.6992]
[1736588925141,2.6981,185.36,185.28,2.6992]
[1736588929145,16.71463443,185.4,185.18,4.9839]
[1736588929347,11.32863443,185.37,185.23,11.32863443]
[1736588930147,2.6985,185.34,185.26,2.6995]
[1736588932246,11.32863443,185.37,185.26,2.6995]
[1736588932451,2.6986,185.33,185.26,2.6995]
[1736588935344,2.6987,185.32,185.26,2.6995]
[1736588937851,2.6987,185.32,185.27,2.6994]
[1736588938453,2.6985,185.34,185.26,11.32863443]
[1736588939050,16.71463443,185.4,185.3,2.6989]
[1736588939251,16.71463443,185.4,185.27,4.798]
[1736588941050,2.6982,185.36,185.29,2.6991]
[1736588941653,2.6982,185.36,185.27,4.798]
[1736588941853,16.71463443,185.4,185.27,4.798]
[1736588941854,2.698,185.37,185.3,2.6989]
[1736588942055,11.32863443,185.4,185.27,4.798]
[1736588942352,11.32863443,185.4,185.31,2.6987]
[1736588943051,2.6978,185.38,185.31,2.6987]
[1736588943549,11.32863443,185.4,185.27,4.798]
[1736588943755,2.6978,185.39,185.27,4.798]
[1736588944146,2.6978,185.39,185.32,2.6987]
[1736588946055,2.6972,185.42,185.35,2.6982]
[1736588946259,148.86379214,185.43,185.32,11.32863443]
[1736588946457,148.86379214,185.44,185.32,11.32863443]
[1736588946655,11.32863443,185.42,185.29,11.32863443]
[1736588946957,11.32863443,185.42,185.33,2.6985]
[1736588946958,2.6976,185.4,185.33,2.6985]
[1736588947462,11.32863443,185.42,185.32,11.32863443]
[1736588948058,148.86379214,185.45,185.32,11.32863443]
[1736588948358,11.32863443,185.44,185.32,11.32863443]
[1736588948561,148.86379214,185.47,185.38,11.32863443]
[1736588949459,11.32863443,185.49,185.38,11.32863443]
[1736588950459,2.6968,185.45,185.38,11.32863443]
[1736588951465,2.6966,185.46,185.38,14.02643443]
[1736588952062,2.6966,185.46,185.38,11.32863443]
[1736588952266,11.32863443,185.49,185.38,11.32863443]
[1736588952267,2.6965,185.48,185.38,11.32863443]
[1736588953062,2.6965,185.48,185.41,2.6973]
[1736588954367,2.6962,185.49,185.41,2.6973]
[1736588955567,2.696,185.51,185.44,2.6969]
[1736588955966,2.696,185.51,185.41,11.32863443]
[1736588956763,2.6963,185.48,185.41,11.32863443]
[1736588956968,11.32863443,185.51,185.38,11.32863443]
[1736588957368,2.6965,185.48,185.38,14.02623443]
[1736588957667,11.32863443,185.51,185.38,14.02623443]
[1736588957868,11.32863443,185.51,185.38,2.6976]
[1736588958169,11.32863443,185.51,185.39,11.32863443]
[1736588959469,2.6966,185.47,185.39,11.32863443]
[1736588959665,2.6966,185.47,185.39,14.02623443]
[1736588959865,2.6966,185.47,185.39,11.32863443]
[1736588960067,2.6962,185.49,185.42,11.32863443]
[1736588960457,4.95,185.53,185.42,11.32863443]
[1736588962066,2.696,185.51,185.44,2.6969]
[1736588962470,2.696,185.51,185.42,11.32863443]
[1736588962670,2.696,185.51,185.43,2.697]
[1736588963668,2.696,185.5,185.43,2.697]
[1736588965070,2.6958,185.52,185.45,11.32863443]
[1736588965571,2.6956,185.53,185.46,2.6966]
[1736588965771,2.6956,185.53,185.48,11.32863443]
[1736588970476,2.6958,185.52,185.48,11.32863443]
[1736588971277,2.6958,185.52,185.49,7.23694157]
[1736588972777,2.6954,185.55,185.51,7.23694157]
[1736588973373,7.23694157,185.58,185.51,7.23694157]
[1736588973679,7.23694157,185.56,185.5,7.23694157]
[1736588974076,2.6955,185.54,185.5,7.23694157]
[1736588975180,7.23694157,185.56,185.5,7.23694157]
[1736588975380,2.6953,185.56,185.52,7.23694157]
[1736588976582,2.695,185.58,185.54,7.23694157]
[1736588978574,2.6947,185.59,185.54,7.23694157]
[1736588981786,2.6947,185.59,185.56,7.23694157]
[1736588982783,7.23694157,185.62,185.56,7.23694157]
[1736588983082,7.23694157,185.6,185.44,4.7424]
[1736588983282,7.23694157,185.6,185.53,7.23694157]
[1736588983479,2.695,185.58,185.53,7.23694157]
[1736588985390,2.6954,185.55,185.47,2.6965]
[1736588985584,7.23694157,185.53,185.44,4.7424]
[1736588985779,7.23694157,185.51,185.45,7.23694157]
[1736588986090,2.6962,185.49,185.41,2.6973]
[1736588986289,7.23694157,185.52,185.45,7.23694157]
[1736588987088,2.696,185.51,185.45,7.23694157]
[1736588987585,2.696,185.51,185.47,7.23694157]
[1736588989981,2.6957,185.53,185.49,7.23694157]
[1736588992087,7.23694157,185.56,185.51,7.23694157]
[1736588992387,156.10073371,185.58,185.51,7.23694157]
[1736588992786,2.6954,185.55,185.51,7.23694157]
[1736588995086,2.6955,185.54,185.51,7.23694157]
[1736588996890,7.23694157,185.58,185.51,7.23694157]
[1736588997087,2.6953,185.55,185.51,7.23694157]
[1736589000795,2.6952,185.56,185.51,7.23694157]
[1736589000995,5.86,185.59,185.53,7.23694157]
[1736589001294,7.23694157,185.6,185.53,7.23694157]
[1736589001691,2.6949,185.58,185.55,7.23694157]
[1736589001898,148.86379214,185.63,185.57,7.23694157]
[1736589002301,2.6945,185.61,185.57,7.23694157]
[1736589004493,2.6942,185.63,185.59,7.23694157]
[1736589004689,157.79183371,185.67,185.61,7.23694157]
[1736589004893,156.10073371,185.67,185.61,7.23694157]
[1736589005191,2.694,185.65,185.61,7.23694157]
[1736589005388,7.23694157,185.67,185.61,7.23694157]
[1736589006795,2.6939,185.65,185.61,7.23694157]
[1736589007190,10.53214157,185.69,185.61,7.23694157]
[1736589007395,2.6937,185.66,185.63,7.23694157]
[1736589009798,2.6935,185.68,185.65,7.23694157]
[1736589011202,7.23694157,185.69,185.61,7.23694157]
[1736589011699,7.23694157,185.69,185.63,7.23694157]
[1736589011901,2.6935,185.68,185.63,7.23694157]
[1736589015294,2.6942,185.63,185.56,3.1341]
[1736589015498,2.6942,185.63,185.58,7.23694157]
[1736589015700,2.6942,185.63,185.56,3.1341]
[1736589016100,2.6942,185.63,185.59,7.23694157]
[1736589016305,7.23694157,185.65,185.56,3.1341]
[1736589016498,2.6943,185.62,185.57,7.23694157]
[1736589017401,2.6945,185.61,185.57,7.23694157]
[1736589017799,7.23694157,185.65,185.57,7.23694157]
[1736589018101,2.6946,185.6,185.57,7.23694157]
[1736589018704,2.6943,185.63,185.59,7.23694157]
[1736589020302,13.03694157,185.66,185.56,3.1341]
[1736589020501,2.6945,185.61,185.56,8.78904157]
[1736589021806,2.6945,185.61,185.58,7.23694157]
[1736589022207,7.23694157,185.64,185.58,7.23694157]
[1736589022409,2.6942,185.63,185.58,7.23694157]
[1736589025311,13.03694157,185.66,185.56,1.5521]
[1736589025506,13.03694157,185.66,185.58,7.23694157]
[1736589025507,7.23694157,185.64,185.58,7.23694157]
[1736589026814,2.6943,185.63,185.58,7.23694157]
[1736589027112,13.03694157,185.66,185.58,7.23694157]
[1736589027312,2.6941,185.64,185.58,7.23694157]
[1736589027814,7.23694157,185.66,185.58,7.23694157]
[1736589028014,2.6942,185.63,185.58,7.23694157]
[1736589030415,2.6944,185.61,185.57,7.23694157]
[1736589031914,2.6947,185.6,185.55,8.91884157]
[1736589035707,7.23694157,185.6,185.5,1.6568]
[1736589035913,7.23694157,185.6,185.53,7.23694157]
[1736589036315,7.23694157,185.6,185.5,3.2041]
[1736589036518,7.23694157,185.6,185.51,7.23694157]
[1736589036816,7.23694157,185.58,185.51,7.23694157]
[1736589037411,2.6953,185.56,185.51,7.23694157]
[1736589039318,156.10073371,185.62,185.55,7.23694157]
[1736589039815,7.23694157,185.62,185.55,7.23694157]
[1736589040119,2.6946,185.61,185.55,7.23694157]
[1736589040319,7.23694157,185.62,185.5,3.2041]
[1736589040622,7.23694157,185.6,185.53,7.23694157]
[1736589042117,2.6949,185.58,185.53,7.23694157]
[1736589049326,7.23694157,185.6,185.53,7.23694157]
[1736589049525,2.6947,185.6,185.55,7.23694157]
[1736589050023,2.6945,185.61,185.55,7.23694157]
[1736589050325,7.23694157,185.62,185.55,7.23694157]
[1736589052127,2.6946,185.6,185.55,7.23694157]
[1736589057934,7.23694157,185.62,185.55,7.23694157]
[1736589058137,7.23694157,185.6,185.52,7.23694157]
[1736589059238,2.695,185.58,185.52,7.23694157]
[1736589060032,7.23694157,185.6,185.52,7.23694157]
[1736589060232,2.6948,185.59,185.54,7.23694157]
[1736589061634,2.6946,185.6,185.54,7.23694157]
[1736589061833,2.6946,185.6,185.56,7.23694157]
[1736589062937,2.6949,185.58,185.51,2.6959]
[1736589063139,2.6949,185.58,185.52,7.23694157]
[1736589064135,5.386,185.58,185.46,5.7]
[1736589064435,2.6955,185.54,185.48,7.23694157]
[1736589065442,2.696,185.51,185.42,2.6972]
[1736589065736,9.93294157,185.51,185.45,7.23694157]
[1736589066334,7.23694157,185.51,185.4,4.6982]
[1736589066534,7.23694157,185.49,185.4,4.6982]
[1736589066836,12.62294157,185.47,185.32,29.69886089]
[1736589067034,2.6973,185.42,185.37,7.23694157]
[1736589067738,5.386,185.44,185.37,7.23694157]
[1736589067933,2.697,185.44,185.37,7.23694157]
[1736589068135,7.23694157,185.45,185.38,7.23694157]
[1736589068937,11.106,185.48,185.4,7.23694157]
[1736589069130,12.95694157,185.48,185.42,7.23694157]
[1736589069540,2.6966,185.47,185.42,7.23694157]
[1736589069842,2.6966,185.47,185.36,2.698]
[1736589069843,7.23694157,185.44,185.36,7.23694157]
[1736589070342,2.6974,185.41,185.33,4.6982]
[1736589070738,7.23694157,185.42,185.36,7.23694157]
[1736589071244,7.23694157,185.42,185.26,34.44918486]
[1736589071444,2.698,185.37,185.28,4.7305]
[1736589071738,2.698,185.37,185.33,7.23694157]
[1736589072342,5.386,185.39,185.33,7.23694157]
[1736589072542,2.6977,185.39,185.35,7.23694157]
[1736589072943,8.0837,185.39,185.35,7.23694157]
[1736589073340,2.6977,185.39,185.35,7.23694157]
[1736589074145,5.386,185.39,185.28,4.7305]
[1736589074334,2.698,185.37,185.32,7.23694157]
[1736589074541,5.386,185.39,185.32,7.23694157]
[1736589074932,7.23694157,185.38,185.32,7.23694157]
[1736589075540,7.23694157,185.34,185.28,7.23694157]
[1736589076642,7.23694157,185.34,185.18,2.7006]
[1736589076643,2.699,185.3,185.18,2.7006]
[1736589076943,7.23694157,185.33,185.26,7.23694157]
[1736589077145,5.386,185.32,185.26,7.23694157]
[1736589077344,5.386,185.32,185.2,1.6891]
[1736589077642,5.386,185.32,185.23,11.33444151]
[1736589078245,17.07444151,185.35,185.17,100.94]
[1736589078540,17.07444151,185.35,185.22,11.33444151]
[1736589079145,2.699,185.3,185.22,11.33444151]
[1736589079641,5.386,185.29,185.2,11.33444151]
[1736589080647,5.386,185.31,185.2,11.33444151]
[1736589080943,2.6998,185.24,185.05,101.04]
[1736589081143,2.6998,185.24,185.14,1.6146]
[1736589081350,2.6998,185.24,185.17,11.33444151]
[1736589081549,1.6243,185.34,185.2,11.33444151]
[1736589081946,11.33444151,185.33,185.2,11.33444151]
[1736589082344,5.386,185.28,185.16,2.7009]
[1736589082547,5.386,185.28,185.18,11.33444151]
[1736589083148,2.6996,185.26,185.18,11.33444151]
[1736589083546,5.386,185.29,185.18,11.33444151]
[1736589083746,2.6997,185.25,185.18,11.33444151]
[1736589084750,5.386,185.29,185.15,1.5835]
[1736589084947,5.386,185.29,185.16,11.33444151]
[1736589085448,2.6998,185.25,185.16,11.33444151]
[1736589086144,5.386,185.29,185.18,11.33444151]
[1736589087055,2.6997,185.26,185.18,11.33444151]
[1736589087255,5.386,185.29,185.18,11.33444151]
[1736589087449,11.33444151,185.27,185.14,1.6146]
[1736589087753,16.72044151,185.27,185.15,11.33444151]
[1736589087949,5.74,185.28,185.15,14.59754151]
[1736589088157,5.74,185.28,185.18,11.33444151]
[1736589088851,5.74,185.28,185.15,3.2631]
[1736589088852,2.6999,185.24,185.16,11.33444151]
[1736589089057,2.6999,185.24,185.16,12.99564151]
[1736589089556,2.7001,185.22,185.16,12.99564151]
[1736589090454,2.7003,185.21,185.16,12.99564151]
[1736589091158,2.7003,185.21,185.11,2.7017]
[1736589091458,2.7007,185.19,185.13,11.33444151]
[1736589091756,16.72044151,185.27,185.13,11.33444151]
[1736589091955,16.72044151,185.27,185.14,3.1836]
[1736589092458,16.72044151,185.27,185.13,11.33444151]
[1736589092656,21.48374151,185.27,185.13,11.33444151]
[1736589093257,21.48374151,185.27,185.14,3.1836]
[1736589093855,2.7007,185.19,185.13,11.33444151]
[1736589094251,11.33444151,185.24,185.13,11.33444151]
[1736589094457,2.7005,185.2,185.13,11.33444151]
[1736589094659,11.33444151,185.27,185.14,1.6024]
[1736589095259,11.33444151,185.27,185.1,1.5381]
[1736589095462,11.33444151,185.27,185.13,11.33444151]
[1736589095859,11.33444151,185.23,185.13,11.33444151]
[1736589096059,16.72044151,185.23,185.13,11.33444151]
[1736589097061,16.72044151,185.23,184.93,101.12]
[1736589097262,7.26837059,185.12,185.05,7.26837059]
[1736589097464,5.386,185.17,185.06,3.3425]
[1736589097763,2.7019,185.1,185.06,3.3425]
[1736589097967,7.26837059,185.11,185.06,3.3425]
[1736589098265,7.26837059,185.07,185.0,64.64896316]
[1736589098467,7.26837059,185.05,185.0,64.64896316]
[1736589098663,9.97087059,185.06,185.0,64.64896316]
[1736589098862,7.26837059,185.06,185.0,64.64896316]
[1736589099264,11.186,185.1,185.0,64.64896316]
[1736589099764,2.7029,185.04,185.0,64.64896316]
[1736589100160,11.3669746,185.09,185.0,64.64896316]
[1736589100958,25.7980746,185.13,185.0,64.64896316]
[1736589101158,11.3669746,185.1,185.0,64.64896316]
[1736589101567,2.7021,185.09,185.0,64.64896316]
[1736589102564,11.3669746,185.1,185.0,64.64896316]
[1736589103266,11.3669746,185.1,185.01,2.7031]
[1736589103468,2.7016,185.12,185.01,14.0700746]
[1736589103668,11.3669746,185.13,185.01,11.3669746]
[1736589104463,11.3669746,185.13,185.0,64.64896316]
[1736589104670,11.3669746,185.13,185.02,11.3669746]
[1736589104967,2.7012,185.15,185.05,2.7026]
[1736589105168,2.7012,185.15,185.06,4.7818]
[1736589105570,11.3669746,185.16,185.08,2.7021]
[1736589105770,11.3669746,185.16,185.06,4.7818]
[1736589107066,14.0679746,185.16,185.07,2.7023]
[1736589107275,14.0679746,185.16,185.06,4.7818]
[1736589107859,2.701,185.16,185.06,4.7818]
[1736589108169,2.701,185.16,185.08,2.7021]
[1736589108464,2.7008,185.18,185.06,4.7818]
[1736589108668,11.3669746,185.19,185.08,11.3669746]
[1736589110070,2.7009,185.17,185.09,2.7019]
[1736589110265,7.3356,185.24,185.11,11.3669746]
[1736589110470,11.3669746,185.23,185.11,11.3669746]
[1736589110667,11.3669746,185.25,185.11,11.3669746]
[1736589110868,5.8,185.26,185.14,11.3669746]
[1736589111068,5.8,185.26,185.15,3.3794]
[1736589111264,11.3669746,185.27,185.15,4.9196]
[1736589111967,2.7,185.23,185.15,4.9196]
[1736589117077,5.386,185.26,185.15,4.9196]
[1736589117271,2.7003,185.22,185.15,4.9196]
[1736589117971,5.386,185.26,185.04,11.3669746]
[1736589118179,2.7003,185.21,185.14,11.3669746]
[1736589123276,7.26063948,185.24,185.17,7.26063948]
[1736589123578,2.7002,185.22,185.19,7.26063948]
[1736589123775,7.26063948,185.26,185.19,7.26063948]
[1736589124076,7.26063948,185.24,185.19,7.26063948]
[1736589124476,9.96043948,185.24,185.19,7.26063948]
[1736589124874,7.26063948,185.26,185.19,7.26063948]
[1736589125074,9.96033948,185.26,185.19,7.26063948]
[1736589125575,9.96033948,185.26,185.14,1.6109]
[1736589125576,1.5421,185.29,185.21,7.26063948]
[1736589125767,7.26063948,185.29,185.22,7.26063948]
[1736589126569,7.26063948,185.29,185.14,1.6109]
[1736589126570,5.407,185.32,185.24,7.26063948]
[1736589126774,9.95953948,185.31,185.24,7.26063948]
[1736589127279,2.6989,185.31,185.23,2.6999]
[1736589128975,14.03446428,185.34,185.24,2.6998]
[1736589129279,11.33596428,185.37,185.25,11.33596428]
[1736589129779,11.33596428,185.37,185.28,2.6992]
[1736589130181,12.91496428,185.4,185.28,11.33596428]
[1736589130677,4.2743,185.41,185.31,14.03476428]
[1736589131677,5.76,185.42,185.31,14.03476428]
[1736589131873,2.6975,185.4,185.31,14.03476428]
[1736589132081,5.76,185.42,185.31,11.33596428]
[1736589132282,2.6981,185.36,185.27,2.6992]
[1736589132482,11.33596428,185.4,185.27,11.33596428]
[1736589133277,11.33596428,185.4,185.3,11.33596428]
[1736589134181,2.6979,185.37,185.3,11.33596428]
[1736589135389,2.6981,185.36,185.3,11.33596428]
[1736589136988,11.33596428,185.4,185.3,11.33596428]
[1736589137291,2.6979,185.38,185.3,14.03486428]
[1736589138387,2.6979,185.38,185.31,2.6988]
[1736589138689,2.6976,185.4,185.31,2.6988]
[1736589138891,17.07596428,185.43,185.31,3.1274]
[1736589139090,17.07596428,185.43,185.33,2.6985]
[1736589139389,2.6975,185.4,185.33,14.03446428]
[1736589139785,2.6975,185.4,185.33,11.33596428]
[1736589142591,11.33596428,185.43,185.31,4.7642]
[1736589142592,2.6978,185.38,185.31,4.7642]
[1736589143094,2.6978,185.38,185.31,7.463]
[1736589143291,2.6978,185.38,185.31,4.7642]
[1736589144194,11.33596428,185.43,185.32,2.6986]
[1736589144387,2.6977,185.39,185.32,2.6986]
[1736589145392,2.698,185.37,185.31,4.7642]
[1736589146888,2.698,185.37,185.31,7.463]
[1736589147894,16.74296428,185.43,185.13,7.42471522]
[1736589148196,5.407,185.39,185.26,11.33596428]
[1736589148400,5.407,185.37,185.26,11.33596428]
[1736589149301,7.25201812,185.35,185.28,7.25201812]
[1736589149498,2.6988,185.32,185.28,7.25201812]
[1736589150402,10.53761812,185.38,185.3,7.25201812]
[1736589150604,7.25201812,185.36,185.26,2.6995]
[1736589150804,7.25201812,185.36,185.29,7.25201812]
[1736589151597,5.407,185.35,185.24,1.529]
[1736589151802,3.2856,185.38,185.28,7.25201812]
[1736589151803,7.25201812,185.34,185.28,7.25201812]
[1736589152099,2.6985,185.34,185.28,7.25201812]
[1736589152702,2.6985,185.34,185.3,7.25201812]
[1736589163410,2.6985,185.34,185.28,7.25201812]
[1736589165108,2.6985,185.34,185.27,2.6994]
[1736589165309,7.25201812,185.36,185.24,1.529]
[1736589165510,7.25201812,185.36,185.28,7.25201812]
[1736589165511,2.6986,185.33,185.28,7.25201812]
[1736589170315,7.25201812,185.34,185.24,1.529]
[1736589170509,2.6989,185.31,185.26,7.25201812]
[1736589176217,7.25201812,185.28,185.19,3.1574]
[1736589176516,7.25201812,185.24,185.19,1.5986]
[1736589176721,2.7002,185.22,185.19,1.5986]
[1736589176916,5.7,185.29,185.2,7.25201812]
[1736589177112,5.72,185.31,185.22,7.25201812]
[1736589177315,7.25201812,185.27,185.2,1.5486]
[1736589177625,7.25201812,185.25,185.19,1.5986]
[1736589179224,2.6998,185.24,185.19,1.5986]
[1736589180020,7.25201812,185.25,185.19,1.5986]
[1736589180222,7.25201812,185.23,185.19,1.5986]
[1736589180421,7.25201812,185.21,185.15,8.80061812]
[1736589180621,2.7004,185.2,185.15,8.80061812]
[1736589181520,2.7001,185.22,185.17,7.25201812]
[1736589181719,7.25201812,185.25,185.15,1.5486]
[1736589181920,7.25201812,185.25,185.17,7.25201812]
[1736589183125,9.95171812,185.25,185.17,9.95281812]
[1736589183821,9.95171812,185.25,185.19,7.25201812]
[1736589184225,2.6999,185.24,185.15,4.2496]
[1736589184416,5.72,185.29,185.17,7.25201812]
[1736589184622,7.25201812,185.26,185.19,7.25201812]
[1736589185526,7.25201812,185.24,185.17,2.7007]
[1736589186327,7.25201812,185.22,185.15,1.5486]
[1736589186526,2.7004,185.21,185.15,8.80061812]
[1736589187024,2.7004,185.2,185.15,8.80061812]
[1736589187227,2.7004,185.2,185.15,1.5486]
[1736589187527,2.7012,185.15,185.12,1.6424]
[1736589189120,7.25201812,185.16,185.06,1.5738]
[1736589189326,2.7014,185.13,185.07,8.84361812]
[1736589190028,9.95331812,185.14,185.07,8.84361812]
[1736589190528,9.95331812,185.14,185.09,7.25201812]
[1736589190828,7.25201812,185.16,185.09,7.25201812]
[1736589191423,7.25201812,185.16,185.1,2.7018]
[1736589191629,7.25201812,185.18,185.07,1.5916]
[1736589191824,7.25201812,185.16,185.07,1.5916]
[1736589192028,7.25201812,185.16,185.08,7.25201812]
[1736589192424,7.25201812,185.14,185.08,7.25201812]
[1736589192925,2.7015,185.13,185.06,1.5738]
[1736589193129,7.25201812,185.12,185.06,1.5738]
[1736589193329,7.25201812,185.1,185.06,1.5738]
[1736589193530,7.25201812,185.1,185.01,1.6282]
[1736589193726,7.25201812,185.1,185.02,7.25201812]
[1736589194232,7.25201812,185.12,185.04,7.25201812]
[1736589194435,7.25201812,185.1,185.04,7.25201812]
[1736589194829,2.7021,185.09,185.01,5.8717]
[1736589195027,2.7021,185.09,185.03,7.25201812]
[1736589195530,2.7022,185.08,185.02,7.25201812]
[1736589196233,9.95421812,185.08,185.01,3.1685]
[1736589196432,9.95421812,185.08,185.02,7.25201812]
[1736589196632,7.25201812,185.08,185.0,64.64896316]
[1736589196833,2.7025,185.06,185.0,71.90098128]
[1736589197628,4.76,185.14,185.02,7.25201812]
[1736589197833,7.25201812,185.09,185.02,7.25201812]
[1736589198033,7.25201812,185.07,185.01,7.25201812]
[1736589198326,7.25201812,185.08,185.01,7.25201812]
[1736589198924,7.25201812,185.06,185.0,64.64896316]
[1736589199124,7.25201812,185.04,185.0,64.64896316]
[1736589199730,7.25201812,185.02,185.0,64.64896316]
[1736589200235,7.25201812,185.03,185.0,64.64896316]
[1736589201333,9.95491812,185.03,185.0,64.64896316]
[1736589203232,20.94,185.14,185.0,64.64896316]
[1736589203439,7.25201812,185.06,185.0,71.90098128]
[1736589205335,7.25201812,185.06,185.0,64.64896316]
[1736589205535,7.25201812,185.06,185.0,71.90098128]
[1736589210432,4.76,185.14,185.02,7.25201812]
[1736589210640,7.25201812,185.1,185.04,7.25201812]
[1736589211435,7.25201812,185.08,185.01,1.6131]
[1736589211640,5.76,185.17,185.01,1.6131]
[1736589211641,7.25201812,185.06,185.01,8.86511812]
[1736589212143,7.25201812,185.06,185.01,1.6131]
[1736589212440,9.95461812,185.06,185.01,1.6131]
[1736589212837,7.25201812,185.04,185.0,64.64896316]
[1736589213037,2.703,185.03,185.0,64.64896316]
[1736589213738,7.25201812,185.04,185.0,64.64896316]
[1736589213938,7.25201812,185.02,185.0,64.64896316]
[1736589214844,2.7032,185.01,185.0,64.64896316]
[1736589215547,9.95501812,185.02,185.0,64.64896316]
[1736589215844,7.25201812,185.02,185.0,64.64896316]
[1736589216447,2.7032,185.01,185.0,64.14896316]
[1736589217547,2.7032,185.01,185.0,35.18336316]
[1736589217749,2.7037,184.98,184.88,5.8186]
[1736589217944,7.25201812,184.97,184.9,7.25201812]
[1736589219049,9.95581812,184.97,184.88,5.8185]
[1736589219344,7.25201812,184.97,184.9,7.25201812]
[1736589219946,16.18,185.07,184.91,1.589]
[1736589220247,7.25201812,184.99,184.91,1.589]
[1736589220448,7.25201812,184.99,184.91,8.84101812]
[1736589220645,2.7036,184.98,184.91,8.84101812]
[1736589220845,7.25201812,184.97,184.91,8.84101812]
[1736589221146,7.25201812,184.97,184.91,1.589]
[1736589221357,7.25201812,184.95,184.88,3.1135]
[1736589221545,2.7043,184.94,184.88,3.1135]
[1736589221745,7.25201812,184.93,184.88,3.1135]
[1736589223947,2.7049,184.9,184.81,2.7061]
[1736589224143,2.7049,184.9,184.84,7.25201812]
[1736589224346,7.25201812,184.91,184.84,7.25201812]
[1736589224749,9.95671812,184.91,184.84,7.25201812]
[1736589225147,7.25201812,184.91,184.82,4.7101]
[1736589225347,2.7048,184.9,184.84,7.25201812]
[1736589225756,7.25201812,184.91,184.84,7.25201812]
[1736589226450,9.95671812,184.91,184.82,4.7101]
[1736589226755,9.95671812,184.91,184.84,7.25201812]
[1736589227453,7.25201812,184.91,184.82,4.7101]
[1736589227654,2.7048,184.9,184.82,4.7101]
[1736589227852,2.7048,184.9,184.83,7.25201812]
[1736589228549,7.25201812,184.94,184.87,7.25201812]
[1736589228754,7.25201812,184.92,184.86,7.25201812]
[1736589229353,2.7039,184.96,184.86,7.25201812]
[1736589229554,7.25201812,184.93,184.86,7.25201812]
[1736589229955,7.25201812,184.91,184.82,7.416]
[1736589230155,7.25201812,184.91,184.85,7.25201812]
[1736589230558,9.95661812,184.91,184.82,7.416]
[1736589230758,9.95661812,184.91,184.85,7.25201812]
[1736589230958,7.25201812,184.91,184.85,7.25201812]
[1736589231854,2.7047,184.91,184.85,7.25201812]
[1736589232360,9.95711812,184.88,184.82,4.7101]
[1736589232559,7.25201812,184.88,184.82,4.7101]
[1736589233152,2.7056,184.85,184.82,4.7101]
[1736589233357,27.387,185.0,184.82,4.7101]
[1736589233660,7.25201812,184.9,184.83,7.25201812]
[1736589233855,7.25201812,184.88,184.82,4.7101]
[1736589234159,7.25201812,184.88,184.82,11.96211812]
[1736589235056,9.95711812,184.88,184.82,10.35451812]
[1736589235260,7.25201812,184.88,184.82,3.1025]
[1736589235961,2.7054,184.86,184.82,3.1025]
[1736589236366,7.25201812,184.86,184.82,3.1025]
[1736589236568,2.7056,184.85,184.82,3.1025]
[1736589237767,2.7054,184.86,184.82,3.1025]
[1736589238166,5.407,184.96,184.82,3.1025]
[1736589238367,7.25201812,184.88,184.82,3.1025]
[1736589238571,2.7053,184.87,184.82,3.1025]
[1736589238862,5.407,184.94,184.74,5.84]
[1736589239168,9.95761812,184.85,184.79,8.90561812]
[1736589239364,7.25201812,184.85,184.79,8.90561812]
[1736589239559,7.25201812,184.87,184.79,8.90561812]
[1736589239759,7.25201812,184.88,184.81,7.25201812]
[1736589239961,7.25201812,184.86,184.8,7.25201812]
[1736589240367,9.95741812,184.86,184.8,7.25201812]
[1736589240963,2.7056,184.85,184.8,7.25201812]
[1736589241158,7.25201812,184.84,184.79,1.6536]
[1736589241363,2.7057,184.85,184.8,7.25201812]
[1736589242168,2.7057,184.85,184.75,42.05801164]
[1736589242169,7.25201812,184.86,184.75,42.05801164]
[1736589242365,2.706,184.83,184.78,7.25201812]
[1736589243263,7.25201812,184.85,184.73,1.5824]
[1736589243468,21.587,184.98,184.81,7.25201812]
[1736589243766,7.25201812,184.87,184.82,3.2499]
[1736589243957,7.25201812,184.85,184.82,3.2499]
[1736589244365,7.25201812,184.83,184.82,3.2499]
[1736589244566,5.88,184.91,184.76,7.25201812]
[1736589244764,7.25201812,184.83,184.77,3.2479]
[1736589245068,7.25201812,184.85,184.78,7.25201812]
[1736589245668,7.25201812,184.87,184.8,7.25201812]
[1736589245867,7.25201812,184.87,184.77,3.2479]
[1736589246066,5.88,184.91,184.77,3.2479]
[1736589246067,7.25201812,184.83,184.77,3.2479]